bitfinex/quotes_SOLUSD_20241115
["timestamp","ask_amount","ask_price","bid_price","bid_amount"]
[1731652410045,18.97528516,208.96,208.89,18.97528516]
[1731652410259,4.784,209.03,208.87,0.4817188]
[1731652410260,22.2241,209.01,208.87,0.4817188]
[1731652410460,23.776884,208.97,208.87,0.4817188]
[1731652410642,20.0,208.96,208.87,0.4817188]
[1731652410844,22.2241,209.01,208.87,0.4817188]
[1731652411161,20.0,208.99,208.87,5.2692188]
[1731652411368,18.97528516,208.97,208.9,18.97528516]
[1731652411664,20.0,208.97,208.91,18.97528516]
[1731652412078,38.97528516,208.97,208.9,18.97528516]
[1731652412665,20.0,208.98,208.91,18.97528516]
[1731652412970,20.0,208.98,208.92,18.97528516]
[1731652413152,18.97528516,208.97,208.9,18.97528516]
[1731652413556,18.97528516,208.98,208.91,18.97528516]
[1731652414378,18.97528516,208.98,208.88,23.902374]
[1731652414379,18.97528516,208.95,208.88,18.97528516]
[1731652414868,18.97528516,208.94,208.87,5.2692188]
[1731652415075,4.7853,208.98,208.87,5.2692188]
[1731652415076,38.97528516,208.88,208.87,0.4817188]
[1731652415660,18.97528516,208.91,208.87,0.4817188]
[1731652416278,30.0,208.93,208.88,18.97528516]
[1731652416572,0.1,209.07,208.92,18.97528516]
[1731652416776,18.97528516,209.0,208.93,18.97528516]
[1731652416960,18.97528516,209.0,208.92,18.97528516]
[1731652417168,0.06075,209.06,208.88,20.12549]
[1731652417462,0.1,209.05,208.88,20.12549]
[1731652417872,27.0087,209.01,208.88,20.12549]
[1731652418079,20.0,209.0,208.88,20.0]
[1731652418267,20.0,209.0,208.87,5.2692188]
[1731652418268,18.97528516,208.89,208.87,0.4817188]
[1731652418474,18.97528516,208.93,208.87,0.4817188]
[1731652418778,18.97528516,208.95,208.87,0.4817188]
[1731652418975,20.0,208.96,208.88,0.12549]
[1731652419158,20.0,208.98,208.88,0.12549]
[1731652419477,20.0,208.98,208.87,5.2693188]
[1731652419778,4.7849,208.99,208.87,5.2693188]
[1731652420074,20.0,208.96,208.9,18.97528516]
[1731652420577,38.97528516,208.96,208.89,18.97528516]
[1731652420964,18.97528516,208.98,208.91,18.97528516]
[1731652421860,18.97528516,208.97,208.9,18.97528516]
[1731652422261,23.76068516,208.97,208.9,18.97528516]
[1731652422653,18.97528516,208.94,208.87,19.45700396]
[1731652422858,18.97528516,208.93,208.87,0.4817188]
[1731652423069,18.97528516,208.95,208.87,19.45700396]
[1731652423466,18.97528516,208.96,208.89,18.97528516]
[1731652423773,24.7854,208.97,208.9,18.97528516]
[1731652424183,4.7854,208.97,208.91,18.97528516]
[1731652424378,24.7854,208.97,208.91,18.97528516]
[1731652424781,24.7854,208.97,208.9,18.97528516]
[1731652424962,18.97528516,208.95,208.89,4.7871]
[1731652425360,18.97528516,208.94,208.88,0.12549]
[1731652425577,18.97528516,208.93,208.88,0.12549]
[1731652427384,18.97528516,208.93,208.87,3.8947088]
[1731652427676,18.97528516,208.94,208.87,3.8947088]
[1731652427882,18.97528516,208.93,208.87,3.8947088]
[1731652428283,18.97528516,208.92,208.86,6.2976]
[1731652428465,18.97528516,208.92,208.83,18.97528516]
[1731652428466,18.97528516,208.87,208.82,4.7888]
[1731652428666,18.97528516,208.85,208.78,18.97528516]
[1731652428860,18.97528516,208.86,208.79,18.97528516]
[1731652429063,4.7857,208.96,208.77,21.2012]
[1731652429064,18.97528516,208.84,208.77,21.2012]
[1731652429265,18.97528516,208.82,208.76,6.5917]
[1731652429470,18.97528516,208.8,208.72,23.76638516]
[1731652429666,18.97528516,208.8,208.73,19.10077516]
[1731652429871,18.97528516,208.81,208.74,18.97528516]
[1731652430169,18.97528516,208.79,208.73,0.12549]
[1731652430569,18.97528516,208.81,208.73,18.97528516]
[1731652430778,18.97528516,208.81,208.74,18.97528516]
[1731652430977,18.97528516,208.83,208.76,18.97528516]
[1731652431789,18.97528516,208.85,208.78,18.97528516]
[1731652432079,18.97528516,208.87,208.8,18.97528516]
[1731652432683,18.97528516,208.87,208.79,18.97528516]
[1731652432885,18.97528516,208.87,208.79,23.76468516]
[1731652433259,18.97528516,208.85,208.79,4.7894]
[1731652433572,18.97528516,208.91,208.74,20.0]
[1731652433573,18.97528516,208.83,208.76,42.75216916]
[1731652433775,18.97528516,208.84,208.77,18.97528516]
[1731652434184,18.97528516,208.85,208.78,18.97528516]
[1731652434372,23.76318516,208.86,208.79,18.97528516]
[1731652434681,18.97528516,208.85,208.78,23.76488516]
[1731652435988,18.97528516,208.83,208.78,4.7896]
[1731652436766,18.97528516,208.85,208.78,4.7896]
[1731652437177,18.97528516,208.84,208.78,4.7896]
[1731652437568,18.97528516,208.85,208.78,4.7896]
[1731652437886,18.97528516,208.86,208.78,23.76488516]
[1731652438184,4.7878,208.87,208.78,23.76488516]
[1731652438185,18.97528516,208.87,208.8,18.97528516]
[1731652438388,18.97528516,208.87,208.79,18.97528516]
[1731652438694,18.97528516,208.86,208.78,23.76488516]
[1731652438987,18.97528516,208.87,208.8,18.97528516]
[1731652439286,18.97528516,208.88,208.8,18.97528516]
[1731652439465,18.97528516,208.87,208.8,18.97528516]
[1731652439673,18.97528516,208.87,208.79,18.97528516]
[1731652439873,18.97528516,208.86,208.8,4.7892]
[1731652440079,18.97528516,208.89,208.83,18.97528516]
[1731652440368,18.97528516,208.92,208.84,18.97528516]
[1731652441771,18.97528516,208.92,208.84,23.76348516]
[1731652441982,23.76178516,208.92,208.84,23.76348516]
[1731652442184,18.97528516,208.91,208.84,23.76348516]
[1731652442384,23.76178516,208.92,208.84,23.76348516]
[1731652442579,18.97528516,208.92,208.85,18.97528516]
[1731652442884,18.97528516,208.9,208.84,4.7882]
[1731652443198,18.97528516,208.88,208.82,15.0813]
[1731652443380,18.97528516,208.87,208.82,15.0813]
[1731652443975,18.97528516,208.88,208.82,19.87]
[1731652444497,18.97528516,208.86,208.82,4.7888]
[1731652444714,18.97528516,208.88,208.82,4.7888]
[1731652445179,18.97528516,208.87,208.81,11.3051]
[1731652445776,18.97528516,208.87,208.81,6.5162]
[1731652445983,18.97528516,208.87,208.81,11.3051]
[1731652447584,18.97528516,208.87,208.81,4.7889]
[1731652447900,18.97528516,208.88,208.81,23.76418516]
[1731652448604,18.97528516,208.88,208.81,4.7889]
[1731652449287,18.97528516,208.85,208.81,4.7889]
[1731652450001,18.97528516,208.85,208.79,0.12549]
[1731652450207,18.97528516,208.82,208.77,15.3956]
[1731652450376,18.97528516,208.84,208.77,4.7897]
[1731652450583,18.97528516,208.86,208.79,18.97528516]
[1731652450899,11.92376743,208.87,208.8,11.92376743]
[1731652451105,11.92376743,208.86,208.78,12.04925743]
[1731652451302,11.92376743,208.86,208.79,4.7895]
[1731652451785,11.92376743,208.86,208.79,16.71326743]
[1731652453007,11.92376743,208.85,208.79,4.7895]
[1731652453184,11.92376743,208.83,208.77,4.7899]
[1731652453377,11.92376743,208.82,208.76,6.3445]
[1731652454506,11.92376743,208.82,208.76,11.1346]
[1731652454879,11.92376743,208.84,208.76,23.05836743]
[1731652455209,11.92376743,208.87,208.8,11.92376743]
[1731652455497,11.92376743,208.85,208.78,11.92376743]
[1731652455702,11.92376743,208.83,208.76,16.71386743]
[1731652455906,11.92376743,208.82,208.76,4.7901]
[1731652456106,11.92376743,208.83,208.76,4.7901]
[1731652456309,11.92376743,208.82,208.76,4.7901]
[1731652457190,11.92376743,208.79,208.72,15.8669]
[1731652457379,4.7889,208.82,208.7,6.5782]
[1731652457380,11.92376743,208.76,208.7,6.5782]
[1731652457578,11.92376743,208.75,208.69,4.7917]
[1731652458006,11.92376743,208.74,208.67,16.2607]
[1731652458304,11.92376743,208.73,208.67,21.0527]
[1731652458887,19.10152161,208.73,208.67,21.0527]
[1731652459885,19.10152161,208.7,208.66,0.4817188]
[1731652460204,19.10152161,208.74,208.66,24.37554041]
[1731652460589,19.10152161,208.74,208.67,19.10152161]
[1731652460800,19.10152161,208.74,208.67,4.792]
[1731652460980,19.10152161,208.73,208.67,4.792]
[1731652461187,19.10152161,208.74,208.67,23.89352161]
[1731652461406,19.10152161,208.73,208.67,4.792]
[1731652462899,19.10152161,208.74,208.67,19.10152161]
[1731652463713,19.10152161,208.76,208.69,19.10152161]
[1731652464005,19.10152161,208.77,208.7,19.10152161]
[1731652464493,19.10152161,208.77,208.67,0.12549]
[1731652464889,19.10152161,208.77,208.69,19.10152161]
[1731652466302,18.2437,208.83,208.69,19.10152161]
[1731652466486,19.10152161,208.76,208.69,19.10152161]
[1731652466886,19.10152161,208.76,208.69,23.89302161]
[1731652467086,19.10152161,208.73,208.67,4.7921]
[1731652468192,19.10152161,208.74,208.67,23.89362161]
[1731652468806,19.10152161,208.76,208.69,19.10152161]
[1731652469189,19.10152161,208.75,208.68,19.10152161]
[1731652470086,19.10152161,208.77,208.7,19.10152161]
[1731652470603,19.10152161,208.79,208.72,19.10152161]
[1731652470911,19.10152161,208.77,208.7,19.10152161]
[1731652471819,19.10152161,208.77,208.71,4.7913]
[1731652472406,19.10152161,208.78,208.71,23.89282161]
[1731652472905,19.10152161,208.77,208.71,4.7913]
[1731652474490,19.10152161,208.74,208.71,4.7913]
[1731652474690,19.10152161,208.76,208.71,4.7913]
[1731652475200,4.7893,208.8,208.71,4.7913]
[1731652475201,19.10152161,208.77,208.71,4.7913]
[1731652475504,19.10152161,208.76,208.69,19.10152161]
[1731652475888,19.10152161,208.76,208.68,19.10152161]
[1731652476304,19.10152161,208.75,208.68,19.10152161]
[1731652476506,19.10152161,208.75,208.69,4.7917]
[1731652476708,19.10152161,208.72,208.69,4.7917]
[1731652477604,19.10152161,208.72,208.67,0.12549]
[1731652478011,19.10152161,208.73,208.67,0.12549]
[1731652478810,19.10152161,208.74,208.67,19.22701161]
[1731652479011,4.7902,208.76,208.67,19.22701161]
[1731652479012,19.10152161,208.76,208.69,19.10152161]
[1731652479221,19.10152161,208.75,208.69,19.10152161]
[1731652479391,19.10152161,208.75,208.68,23.89352161]
[1731652480408,19.10152161,208.75,208.69,4.7917]
[1731652480614,19.10152161,208.76,208.69,23.89322161]
[1731652480804,11.93487555,208.76,208.69,16.72657555]
[1731652481286,11.93487555,208.75,208.69,4.7917]
[1731652482007,11.93487555,208.76,208.69,16.72657555]
[1731652482391,11.93487555,208.79,208.72,11.93487555]
[1731652482788,11.93487555,208.82,208.75,11.93487555]
[1731652483399,11.93487555,208.82,208.76,4.7901]
[1731652483721,6.4333,208.88,208.76,4.7901]
[1731652483722,11.93487555,208.84,208.77,11.93487555]
[1731652483894,11.93487555,208.86,208.79,11.93487555]
[1731652484097,11.93487555,208.87,208.8,11.93487555]
[1731652484408,4.7865,208.92,208.78,11.93487555]
[1731652484409,11.93487555,208.84,208.78,11.93487555]
[1731652484907,11.93487555,208.86,208.79,11.93487555]
[1731652485418,11.93487555,208.85,208.79,16.72417555]
[1731652486707,11.93487555,208.86,208.79,16.72417555]
[1731652486896,11.93487555,208.86,208.79,11.93487555]
[1731652487106,11.93487555,208.86,208.79,16.72417555]
[1731652487302,11.93487555,208.85,208.79,16.72417555]
[1731652488408,11.93487555,208.86,208.79,16.72417555]
[1731652489304,11.93487555,208.87,208.8,11.93487555]
[1731652489619,11.93487555,208.86,208.8,11.93487555]
[1731652489796,11.93487555,208.88,208.82,11.93487555]
[1731652489997,11.93487555,208.89,208.82,11.93487555]
[1731652490640,11.93487555,208.88,208.82,16.72347555]
[1731652491031,11.93487555,208.87,208.82,4.7886]
[1731652492021,11.93487555,208.86,208.81,16.6063]
[1731652493320,20.0,208.93,208.81,21.3953]
[1731652493505,11.93487555,208.88,208.81,33.33017555]
[1731652494324,11.93487555,208.89,208.81,21.3953]
[1731652494532,11.93487555,208.91,208.85,11.93487555]
[1731652494821,11.93487555,208.91,208.84,11.93487555]
[1731652495933,11.93487555,208.9,208.85,4.7881]
[1731652496140,11.93487555,208.9,208.83,16.72327555]
[1731652496338,11.93487555,208.9,208.84,23.776884]
[1731652496623,11.93487555,208.89,208.84,23.776884]
[1731652497015,11.93487555,208.9,208.84,23.776884]
[1731652497216,11.93487555,208.9,208.84,28.565084]
[1731652497600,11.93487555,208.9,208.84,40.49995955]
[1731652498303,11.93487555,208.9,208.84,28.565084]
[1731652498499,11.93487555,208.9,208.84,40.49995955]
[1731652498716,11.93487555,208.9,208.84,28.565084]
[1731652498926,11.93487555,208.85,208.81,16.6063]
[1731652499220,11.93487555,208.84,208.81,16.6063]
[1731652499632,11.93487555,208.91,208.81,16.6063]
[1731652499811,11.93487555,208.85,208.81,21.3953]
[1731652500012,11.93487555,208.88,208.82,0.12549]
[1731652500326,11.93487555,208.91,208.84,16.72307555]
[1731652500509,11.93487555,208.89,208.84,4.7882]
[1731652500823,4.7867,208.92,208.82,0.12549]
[1731652501624,11.93487555,208.86,208.82,4.91419]
[1731652501925,11.93487555,208.88,208.82,16.84906555]
[1731652502124,11.93487555,208.91,208.84,11.93487555]
[1731652502536,11.93487555,208.9,208.84,4.7883]
[1731652502904,11.93487555,208.93,208.86,11.93487555]
[1731652503432,11.93487555,208.92,208.85,35.71175955]
[1731652503610,11.93487555,208.91,208.85,23.776884]
[1731652504117,11.93487555,208.91,208.86,4.7878]
[1731652504827,11.93487555,208.92,208.86,4.7878]
[1731652505512,11.93487555,208.93,208.86,4.7878]
[1731652505826,11.93487555,208.93,208.87,11.93487555]
[1731652506032,11.93487555,208.95,208.88,35.71175955]
[1731652506233,11.93487555,208.93,208.86,16.72267555]
[1731652506538,4.7856,208.96,208.86,16.72267555]
[1731652506539,11.93487555,208.92,208.86,4.7878]
[1731652507425,11.93487555,208.93,208.86,16.72267555]
[1731652507931,11.93487555,208.93,208.87,11.93487555]
[1731652508108,11.93487555,208.95,208.88,11.93487555]
[1731652509138,11.93487555,208.94,208.88,4.7874]
[1731652509330,4.7851,208.98,208.88,16.72227555]
[1731652509630,11.93487555,208.95,208.89,11.93487555]
[1731652509928,11.93487555,208.94,208.88,16.72227555]
[1731652510150,11.93487555,208.94,208.88,4.7874]
[1731652510632,11.93487555,208.95,208.89,35.71175955]
[1731652510834,11.93487555,208.97,208.9,11.93487555]
[1731652511005,11.93487555,209.01,208.95,11.93487555]
[1731652511205,11.93487555,209.02,208.95,11.93487555]
[1731652511426,11.93487555,209.03,208.97,11.93487555]
[1731652511815,11.93487555,209.04,208.97,11.93487555]
[1731652512022,11.93487555,209.03,208.96,11.93487555]
[1731652512329,11.93487555,209.06,208.99,11.93487555]
[1731652512518,11.93487555,209.06,208.94,0.1]
[1731652512519,11.93487555,209.06,209.0,16.71937555]
[1731652513706,11.93487555,209.07,209.01,35.71175955]
[1731652514133,11.93487555,209.08,209.01,35.71175955]
[1731652514521,11.93487555,209.1,209.04,16.71857555]
[1731652514735,11.93487555,209.17,209.04,16.71857555]
[1731652514736,11.93487555,209.13,209.07,11.93487555]
[1731652515031,11.93487555,209.16,209.1,11.93487555]
[1731652515239,11.93487555,209.17,209.11,11.93487555]
[1731652515531,11.93487555,209.18,209.12,11.93487555]
[1731652515716,22.0533,209.27,209.14,11.93487555]
[1731652515717,11.93487555,209.21,209.14,11.93487555]
[1731652516044,11.93487555,209.23,209.16,11.93487555]
[1731652516228,11.93487555,209.25,209.18,11.93487555]
[1731652516548,11.93487555,209.25,209.11,23.776884]
[1731652516549,11.93487555,209.27,209.21,4.7798]
[1731652517034,12.06036555,209.28,209.22,11.93487555]
[1731652517544,12.06036555,209.28,209.21,4.7798]
[1731652517545,0.12549,209.28,209.23,11.93487555]
[1731652517711,12.06036555,209.28,209.22,11.93487555]
[1731652518225,11.93487555,209.23,209.13,23.776884]
[1731652518432,4.90379,209.28,209.12,4.7819]
[1731652518433,11.93487555,209.18,209.12,4.7819]
[1731652518938,11.93487555,209.18,209.13,0.12549]
[1731652519236,11.93487555,209.14,209.04,23.2965]
[1731652519413,11.93487555,209.1,209.04,23.2965]
[1731652519936,11.93487555,209.11,209.05,4.90899]
[1731652520135,11.93487555,209.11,209.05,4.7835]
[1731652520337,11.93487555,209.14,209.07,11.93487555]
[1731652520544,11.93487555,209.18,209.11,11.93487555]
[1731652520720,11.93487555,209.19,209.12,11.93487555]
[1731652521021,11.93487555,209.16,209.09,11.93487555]
[1731652521415,11.93487555,209.17,209.1,11.93487555]
[1731652521630,11.93487555,209.2,209.13,11.93487555]
[1731652521936,11.93487555,209.19,209.13,4.7816]
[1731652522316,11.93487555,209.22,209.15,11.93487555]
[1731652522516,11.93487555,209.25,209.19,11.93487555]
[1731652522712,11.93487555,209.27,209.2,11.93487555]
[1731652523015,11.93487555,209.25,209.18,11.93487555]
[1731652523216,4.90389,209.28,209.15,43.776884]
[1731652523437,4.90389,209.28,209.13,4.7816]
[1731652523637,4.90389,209.28,209.14,23.776884]
[1731652523822,4.90389,209.28,209.15,4.7812]
[1731652524342,11.93487555,209.24,209.17,11.93487555]
[1731652524561,4.90389,209.28,209.2,11.93487555]
[1731652524562,11.93487555,209.27,209.2,11.93487555]
[1731652524833,0.12549,209.28,209.24,19.00153953]
[1731652525142,0.12549,209.28,209.15,4.7812]
[1731652525437,0.12549,209.28,209.18,23.776884]
[1731652525642,0.12549,209.28,209.19,20.0]
[1731652525838,0.12549,209.28,209.23,23.776884]
[1731652526018,0.12549,209.28,209.22,4.7796]
[1731652526213,0.12549,209.28,209.25,19.00153953]
[1731652526443,0.12549,209.28,209.26,19.00153953]
[1731652526939,0.12549,209.28,209.24,19.00153953]
[1731652527242,0.12549,209.28,209.23,19.00153953]
[1731652527438,19.00153953,209.26,209.19,19.00153953]
[1731652527634,4.90389,209.28,209.16,4.781]
[1731652527635,19.00153953,209.22,209.16,4.781]
[1731652528243,19.00153953,209.21,209.14,19.00153953]
[1731652528546,19.00153953,209.24,209.17,19.00153953]
[1731652528837,20.0,209.23,209.17,19.00153953]
[1731652529044,19.00153953,209.22,209.15,19.12702953]
[1731652529346,19.00153953,209.22,209.15,19.00153953]
[1731652529836,39.00153953,209.23,209.16,19.00153953]
[1731652530043,19.00153953,209.23,209.16,23.78243953]
[1731652530243,19.00153953,209.23,209.16,4.7809]
[1731652530457,19.00153953,209.22,209.16,4.7809]
[1731652530624,19.00153953,209.23,209.16,23.78243953]
[1731652530948,19.00153953,209.23,209.16,4.7809]
[1731652531633,19.00153953,209.22,209.15,0.12549]
[1731652532151,19.00153953,209.23,209.15,19.12702953]
[1731652533426,19.00153953,209.22,209.15,19.00153953]
[1731652533629,19.00153953,209.2,209.13,23.78313953]
[1731652534746,19.00153953,209.21,209.14,19.00153953]
[1731652534946,19.00153953,209.22,209.15,19.00153953]
[1731652535150,0.12549,209.28,209.24,0.1]
[1731652535319,0.4817188,209.4,209.28,43.776884]
[1731652535524,0.4817188,209.4,209.39,19.00153953]
[1731652536028,0.4817188,209.4,209.37,19.00153953]
[1731652536228,0.4817188,209.4,209.34,19.00153953]
[1731652536743,19.00153953,209.38,209.31,19.00153953]
[1731652536948,5.2573188,209.4,209.34,19.00153953]
[1731652537149,0.4817188,209.4,209.36,19.00153953]
[1731652537329,0.4817188,209.4,209.37,19.00153953]
[1731652537926,0.4817188,209.4,209.3,19.00153953]
[1731652537927,0.4817188,209.4,209.36,19.00153953]
[1731652538933,0.4817188,209.4,209.35,19.00153953]
[1731652539256,0.4817188,209.4,209.26,23.776884]
[1731652539257,19.00153953,209.36,209.27,23.78003953]
[1731652539460,19.00153953,209.34,209.27,23.78003953]
[1731652539759,19.00153953,209.36,209.29,19.00153953]
[1731652540254,19.00153953,209.35,209.29,19.00153953]
[1731652540431,19.00153953,209.35,209.29,23.77933953]
[1731652540748,19.00153953,209.33,209.26,19.00153953]
[1731652540961,19.00153953,209.3,209.25,4.7788]
[1731652541129,19.00153953,209.29,209.25,4.7788]
[1731652541334,19.00153953,209.3,209.25,4.7788]
[1731652541854,20.0,209.37,209.25,4.7788]
[1731652541855,19.00153953,209.31,209.25,4.7788]
[1731652542238,19.00153953,209.29,209.25,4.7788]
[1731652542432,19.00153953,209.29,209.22,19.00153953]
[1731652542647,19.00153953,209.27,209.2,23.78163953]
[1731652542957,19.00153953,209.27,209.21,0.12549]
[1731652543133,19.00153953,209.29,209.22,19.00153953]
[1731652543334,19.00153953,209.28,209.21,19.12702953]
[1731652543734,19.00153953,209.27,209.21,19.12702953]
[1731652543941,4.83715,209.36,209.21,19.12702953]
[1731652543942,19.00153953,209.28,209.21,19.12702953]
[1731652544558,19.00153953,209.27,209.21,0.12549]
[1731652544860,19.00153953,209.25,209.2,4.7801]
[1731652545434,19.00153953,209.26,209.19,19.00153953]
[1731652545635,19.00153953,209.23,209.16,19.00153953]
[1731652546335,19.00153953,209.22,209.15,23.78273953]
[1731652546534,23.77953953,209.3,209.12,16.3615]
[1731652546535,19.00153953,209.2,209.13,4.7815]
[1731652546738,0.16075,209.29,209.13,4.7815]
[1731652546739,19.00153953,209.19,209.13,4.7815]
[1731652547640,19.00153953,209.2,209.13,23.78303953]
[1731652548041,19.00153953,209.2,209.13,4.7815]
[1731652549444,19.00153953,209.19,209.13,4.7815]
[1731652550684,19.00153953,209.2,209.13,19.00153953]
[1731652550866,19.00153953,209.19,209.13,19.00153953]
[1731652551446,19.00153953,209.19,209.12,19.00153953]
[1731652552363,19.00153953,209.18,209.11,19.12702953]
[1731652552660,19.00153953,209.19,209.12,19.00153953]
[1731652553367,19.00153953,209.2,209.13,19.00153953]
[1731652553542,19.00153953,209.23,209.16,19.00153953]
[1731652553859,19.00153953,209.22,209.15,19.00153953]
[1731652554543,19.00153953,209.22,209.16,4.781]
[1731652555257,19.00153953,209.21,209.16,4.781]
[1731652555565,19.00153953,209.17,209.12,4.7819]
[1731652555862,19.00153953,209.16,209.12,4.7819]
[1731652556367,19.00153953,209.15,209.12,4.7819]
[1731652556549,19.00153953,209.18,209.12,4.7819]
[1731652557149,19.00153953,209.17,209.12,4.7819]
[1731652557351,19.00153953,209.15,209.12,4.7819]
[1731652557762,4.7798,209.21,209.12,4.7819]
[1731652557763,19.00153953,209.14,209.12,4.7819]
[1731652557945,19.00153953,209.13,209.08,4.7828]
[1731652558267,19.00153953,209.12,209.08,4.7828]
[1731652558670,19.00153953,209.13,209.08,4.7828]
[1731652559057,19.00153953,209.12,209.08,4.7828]
[1731652560158,19.00153953,209.12,209.06,0.12549]
[1731652560353,19.00153953,209.13,209.06,19.12702953]
[1731652560744,19.00153953,209.12,209.06,19.12702953]
[1731652561171,19.00153953,209.13,209.06,19.12702953]
[1731652562360,19.00153953,209.14,209.07,19.00153953]
[1731652563455,19.00153953,209.18,209.11,19.00153953]
[1731652563645,19.00153953,209.22,209.15,19.00153953]
[1731652563852,4.7791,209.25,209.16,19.00153953]
[1731652563853,19.00153953,209.23,209.16,19.00153953]
[1731652564148,19.00153953,209.22,209.15,19.00153953]
[1731652564670,19.00153953,209.24,209.17,19.00153953]
[1731652564966,19.00153953,209.25,209.17,19.00153953]
[1731652565343,19.00153953,209.24,209.17,19.00153953]
[1731652565646,19.00153953,209.2,209.13,19.00153953]
[1731652566049,19.00153953,209.23,209.16,19.00153953]
[1731652566268,4.7787,209.27,209.11,24.7821]
[1731652566269,19.00153953,209.24,209.17,19.00153953]
[1731652566473,19.00153953,209.26,209.19,19.00153953]
[1731652566769,19.00153953,209.28,209.21,19.00153953]
[1731652566964,19.00153953,209.26,209.19,19.00153953]
[1731652567554,19.00153953,209.25,209.2,4.7801]
[1731652567948,19.00153953,209.28,209.22,19.00153953]
[1731652568145,19.00153953,209.28,209.2,4.7801]
[1731652568146,19.00153953,209.33,209.26,19.00153953]
[1731652568348,19.00153953,209.34,209.28,19.00153953]
[1731652568564,15.2619,209.37,209.29,19.00153953]
[1731652568565,19.00153953,209.35,209.29,19.00153953]
[1731652569051,19.00153953,209.35,209.28,19.00153953]
[1731652569261,19.00153953,209.35,209.29,19.00153953]
[1731652569459,19.00153953,209.36,209.29,19.00153953]
[1731652569661,19.00153953,209.36,209.3,4.7778]
[1731652570474,19.00153953,209.37,209.3,23.77933953]
[1731652570846,0.4817188,209.4,209.32,19.00153953]
[1731652570847,19.00153953,209.39,209.32,19.00153953]
[1731652571171,0.4817188,209.4,209.34,19.00153953]
[1731652571760,0.4817188,209.4,209.35,4.7766]
[1731652572652,0.4817188,209.4,209.35,23.77813953]
[1731652572868,19.00153953,209.39,209.32,19.00153953]
[1731652573068,19.00153953,209.36,209.26,20.0]
[1731652573248,19.00153953,209.35,209.28,19.00153953]
[1731652573861,19.00153953,209.36,209.29,23.77953953]
[1731652574672,19.00153953,209.37,209.3,19.00153953]
[1731652575569,19.00153953,209.37,209.31,4.7776]
[1731652575961,19.00153953,209.32,209.22,4.7796]
[1731652576270,19.00153953,209.29,209.22,23.78113953]
[1731652576587,19.00153953,209.28,209.22,4.7796]
[1731652577068,19.00153953,209.27,209.23,0.12549]
[1731652577466,19.00153953,209.28,209.23,4.90479]
[1731652577972,19.00153953,209.26,209.19,6.4322]
[1731652578168,19.00153953,209.25,209.21,4.7797]
[1731652578358,19.00153953,209.25,209.18,19.00153953]
[1731652578359,19.00153953,209.23,209.17,4.7808]
[1731652578560,19.00153953,209.22,209.15,19.00153953]
[1731652578768,19.00153953,209.21,209.15,4.7811]
[1731652578977,19.00153953,209.19,209.12,19.00153953]
[1731652579158,19.00153953,209.2,209.13,19.00153953]
[1731652579360,19.00153953,209.2,209.14,0.12549]
[1731652579662,19.00153953,209.2,209.13,23.78323953]
[1731652579859,19.00153953,209.19,209.13,4.7817]
[1731652580175,19.00153953,209.15,209.07,19.00153953]
[1731652580378,19.00153953,209.14,209.07,19.00153953]
[1731652580572,19.00153953,209.14,209.08,0.12549]
[1731652581271,19.00153953,209.13,209.06,19.00153953]
[1731652581583,19.00153953,209.1,209.05,4.7835]
[1731652581969,19.00153953,209.11,209.06,0.12549]
[1731652582276,19.00153953,209.1,209.05,4.7835]
[1731652582485,19.00153953,209.09,209.05,4.7835]
[1731652582658,19.00153953,209.1,209.05,4.7835]
[1731652583572,19.00153953,209.13,209.06,0.12549]
[1731652583772,19.00153953,209.12,209.06,0.12549]
[1731652583990,19.00153953,209.1,209.05,4.7835]
[1731652584487,19.00153953,209.12,209.07,4.783]
[1731652584675,19.00153953,209.11,209.07,4.783]
[1731652584875,19.00153953,209.12,209.07,4.783]
[1731652585186,19.00153953,209.11,209.07,4.783]
[1731652585485,19.00153953,209.16,209.09,19.00153953]
[1731652585687,19.00153953,209.14,209.07,23.78453953]
[1731652585894,19.00153953,209.12,209.07,4.783]
[1731652586068,19.00153953,209.13,209.07,23.78453953]
[1731652586387,19.00153953,209.14,209.07,23.78453953]
[1731652587183,19.00153953,209.21,209.13,19.00153953]
[1731652587385,19.00153953,209.21,209.14,19.00153953]
[1731652587975,19.00153953,209.23,209.16,19.00153953]
[1731652588185,19.00153953,209.25,209.18,19.00153953]
[1731652588604,19.00153953,209.24,209.17,19.00153953]
[1731652589283,19.00153953,209.27,209.2,19.00153953]
[1731652589466,19.00153953,209.26,209.19,19.00153953]
[1731652589666,19.00153953,209.27,209.2,19.00153953]
[1731652589867,0.12549,209.28,209.22,19.00153953]
[1731652590694,0.12549,209.28,209.26,19.00153953]
[1731652590869,0.12549,209.28,209.25,19.00153953]
[1731652591269,0.12549,209.28,209.27,19.00153953]
[1731652591483,0.12549,209.28,209.27,42.77842353]